[Event "Lviv Tradition January 2019"]
[Site "Lviv"]
[Date "2019.01.27"]
[Round "1"]
[White "Siniauski, Artsiom"]
[Black "Shkuran, Danylo"]
[Result "1-0"]
[ECO "B40"]
[WhiteElo "2182"]
[BlackElo "2359"]
[Annotator "NA"]
[PlyCount "103"]
[EventDate "2019.01.27"]
[EventType "schev"]
[EventCountry "UKR"]
[SourceTitle "playchess.com"]
[Source "ChessBase"]
[SourceQuality "1"]
[TimeControl "5400+30"]

1. e4 c5 2. Nf3 e6 3. c4 Nc6 4. Nc3 e5 5. Be2 g6 6. O-O Bg7 7. a3 Nge7 8. Rb1 a5 9. Nd5 O-O 10. d3 d6 11. Bg5 f6 12. Bd2 Nxd5 13. cxd5 Nb8 14. b4 axb4 15. axb4 Na6 16. bxc5 Nxc5 17. Bb4 b6 18. Nd2 Ba6 19. Bxc5 bxc5 20. Qb3 Qa5 21. Nc4 Bxc4 22. dxc4 Qa2 23. Bd3 Qxb3 24. Rxb3 Ra6 25. Rfb1 Rfa8 26. g3 Ra1 27. Rxa1 Rxa1+ 28. Kg2 Re1 29. Rb7 f5 30. Kf3 fxe4+ 31. Bxe4 Rd1 32. Rd7 Bf8 33. h4 Rd4 34. h5 gxh5 35. Bxh7+ Kh8 36. Bf5 h4 37. g4 Rxc4 38. Kg2 Rf4 39. Kh3 Rxf2 40. Kxh4 Rh2+ 41. Kg5 e4 42. Bxe4 Re2 43. Bf5 Re7 44. Rd8 Kg7 45. Rxd6 Ra7 46. Rg6+ Kf7 47. d6 Ra6 48. Be6+ Ke8 49. d7+ Ke7 50. Rf6 Bg7 51. Rf7+ Kd8 52. Kf5 1-0

[Event "Lviv Tradition January 2019"]
[Site "Lviv"]
[Date "2019.01.28"]
[Round "2"]
[White "Terletsky, Oleg"]
[Black "Gavrish, Leonid"]
[Result "1-0"]
[ECO "B00"]
[WhiteElo "2197"]
[BlackElo "2149"]
[Annotator "NA RC"]
[PlyCount "50"]
[EventDate "2019.01.27"]
[EventType "schev"]
[EventCountry "UKR"]
[SourceTitle "playchess.com"]
[Source "ChessBase"]
[SourceQuality "1"]
[TimeControl "5400+30"]

1. e4 {[%emt 0:00:00]} d6 {[%emt 0:00:00]} 2. d4 {[%emt 0:00:00]} Nf6 {[%emt 0:00:00]} 3. f3 {[%emt 0:00:00]} Nbd7 {[%emt 0:00:56]} 4. c4 {[%emt 0:00:11]} c5 {[%emt 0:00:14]} 5. Ne2 {[%emt 0:00:41]} g6 {[%emt 0:00:28]} 6. Nbc3 {[%emt 0:00:17]} Bg7 {[%emt 0:03:29] LiveBook: 7 Games} 7. Be3 {[%emt 0:01:46]} O-O {[%emt 0:00:30]} 8. Qd2 {[%emt 0:00:07]} a6 {[%emt 0:03:42]} 9. O-O-O {[%emt 0:04:20]} Qa5 {[%emt 0:01:00]} 10. Kb1 {[%emt 0:00:07] E81: King's Indian: Sämisch: 6th move deviations (including 6 Be3 c6)} Re8 {[%emt 0:03:11]} 11. Bh6 $146 {[%emt 0:06:51]} ({Predecessor:} 11. Nc1 cxd4 12. Bxd4 Ne5 13. Nb3 Qc7 14. Nd5 Nxd5 15. cxd5 f5 16. Rc1 Qd8 17. Qe3 fxe4 18. fxe4 {0-1 (75) Ballo,E (2200)-Degraeve,J (2580) Bastia 1998}) 11... Bh8 {[%emt 0:00:38]} 12. h4 {[%emt 0:03:31]} b5 {[%emt 0:00:57]} 13. dxc5 {[%emt 0:06:20]} Nxc5 {[%emt 0:05:20]} 14. h5 {[%emt 0:03:15]} bxc4 {[%emt 0:02:34]} 15. hxg6 {[%emt 0:00:34]} hxg6 {[%emt 0:02:15]} 16. Nd4 {[%emt 0:01:34]} Na4 {[%emt 0:09:34]} 17. Bxc4 {[%emt 0:04:14]} Nxc3+ {[%emt 0:00:26]} 18. bxc3 {[%emt 0:00:16]} d5 {[%emt 0:04:21]} 19. Bb3 {[%emt 0:09:28]} dxe4 {[%emt 0:01:46]} 20. Bf8 {[%emt 0:17:48]} e3 {[%emt 0:15:32]} ({Don't go for} 20... Rxf8 $2 21. Nc6 $18 {[%mdl 64] Decoy}) 21. Qxe3 {[%emt 0:03:37]} Bf5+ {[%emt 0:03:20]} 22. Kb2 {[%emt 0:00:28]} Rxf8 {[%emt 0:03:17]} 23. Nc6 $18 {[%emt 0:03:37] Double Attack} Bc8 24. Kb1 Re8 25. Nd4 Rf8 1-0

[Event "Lviv Tradition January 2019"]
[Site "Lviv"]
[Date "2019.01.29"]
[Round "4"]
[White "Shkuran, Danylo"]
[Black "Kagramanianz, Vartan"]
[Result "1/2-1/2"]
[ECO "B30"]
[WhiteElo "2359"]
[BlackElo "2246"]
[Annotator "NA"]
[PlyCount "63"]
[EventDate "2019.01.27"]
[EventType "schev"]
[EventCountry "UKR"]
[SourceTitle "playchess.com"]
[Source "ChessBase"]
[SourceQuality "1"]
[TimeControl "5400+30"]

1. e4 {[%emt 0:10:59]} c5 {[%emt 0:00:48]} 2. Nf3 {[%emt 0:01:03]} Nc6 {[%emt 0:00:30]} 3. Bb5 {[%emt 0:00:19]} e6 {[%emt 0:00:23]} 4. O-O {[%emt 0:00:06]} Nge7 {[%emt 0:00:06]} 5. Re1 {[%emt 0:00:11]} a6 {[%emt 0:00:07]} 6. Bf1 {[%emt 0:00:09]} d5 {[%emt 0:01:27]} 7. exd5 {[%emt 0:00:49]} Nxd5 {[%emt 0:01:30]} 8. d4 {[%emt 0:00:16]} Nf6 {[%emt 0:00:31]} 9. Be3 {[%emt 0:00:23]} cxd4 {[%emt 0:00:43] B30: Sicilian: 2...Nc6 3 Bb5, lines without ...g6} (9... Nd5 10. Bg5 f6 11. Bc1 cxd4 12. Nxd4 Nxd4 13. Qxd4 Bd6 14. g3 O-O 15. Bg2 Qc7 16. c3 Bc5 17. Qd3 {½-½ (70) Vidit,S (2711)-Lenic,L (2656) chess.com INT 2018}) 10. Nxd4 {[%emt 0:00:13]} Bd7 {[%emt 0:00:46]} 11. c4 {[%emt 0:00:46]} Bb4 {[%emt 0:01:57]} 12. Nc3 {[%emt 0:03:51]} O-O {[%emt 0:00:50]} 13. Qb3 {[%emt 0:00:31]} Qa5 {[%emt 0:05:43]} 14. Nf3 {[%emt 0:01:42]} Rfd8 {[%emt 0:01:02]} 15. a3 {[%emt 0:01:08]} Bc5 {[%emt 0:01:31]} 16. Bxc5 {[%emt 0:02:10]} Qxc5 {[%emt 0:00:45]} 17. Rad1 {[%emt 0:00:24]} b6 $146 {[%emt 0:03:03]} 18. h3 {[%emt 0:06:58]} Ne7 {[%emt 0:04:01]} 19. Ne5 {[%emt 0:03:04]} Be8 {[%emt 0:00:14]} 20. Na4 {[%emt 0:00:15]} Bxa4 {[%emt 0:00:29]} 21. Rxd8+ {[%emt 0:00:15]} Rxd8 {[%emt 0:00:10]} 22. Qxa4 {[%emt 0:00:05]} a5 {[%emt 0:01:02]} 23. b4 {[%emt 0:01:07]} Qc7 {[%emt 0:01:25]} 24. Rd1 {[%emt 0:00:39]} Rxd1 {[%emt 0:00:41]} 25. Qxd1 {[%emt 0:00:09]} Ng6 {[%emt 0:00:26]} 26. Nf3 {[%emt 0:01:04]} axb4 {[%emt 0:01:15]} 27. axb4 {[%emt 0:00:15]} Nd7 {[%emt 0:00:21]} 28. Qd2 {[%emt 0:00:41]} h6 {[%emt 0:01:07]} 29. Qc3 {[%emt 0:00:52]} Ne7 {[%emt 0:01:49]} 30. Nd2 {[%emt 0:00:30]} Nc6 {[%emt 0:01:21]} 31. Nb3 {[%emt 0:00:05]} Qd6 {[%emt 0:00:49]} 32. c5 $11 {[%emt 0:00:15]} 1/2-1/2

[Event "Lviv Tradition January 2019"]
[Site "Lviv"]
[Date "2019.01.29"]
[Round "4"]
[White "Sevostianov, Pavel"]
[Black "Prydun, Andriy"]
[Result "0-1"]
[ECO "C00"]
[WhiteElo "2258"]
[BlackElo "2218"]
[Annotator "RC"]
[PlyCount "70"]
[EventDate "2019.01.27"]
[EventType "schev"]
[EventCountry "UKR"]
[SourceTitle "playchess.com"]
[Source "ChessBase"]
[SourceQuality "1"]
[TimeControl "5400+30"]

1. e4 {[%emt 0:00:49]} e6 {[%emt 0:00:12]} 2. Nc3 {[%emt 0:04:39]} d5 {[%emt 0:00:14]} 3. g3 {[%emt 0:00:16]} Nf6 {[%emt 0:01:37]} 4. Bg2 {[%emt 0:00:17]} c5 {[%emt 0:10:00]} 5. exd5 {[%emt 0:00:09]} exd5 {[%emt 0:00:09]} 6. d3 {[%emt 0:00:16]} Be7 {[%emt 0:01:17]} 7. Nge2 {[%emt 0:00:40]} d4 {[%emt 0:04:17]} 8. Ne4 {[%emt 0:00:17]} Nxe4 {[%emt 0:00:09]} 9. Bxe4 {[%emt 0:00:06]} Nd7 {[%emt 0:00:02]} 10. O-O {[%emt 0:00:43]} Nf6 {[%emt 0:00:09]} 11. Bg2 {[%emt 0:00:08]} O-O {[%emt 0:00:33]} 12. Bg5 {[%emt 0:06:49]} Bg4 {[%emt 0:17:35]} 13. h3 {[%emt 0:01:24]} Bd7 {[%emt 0:00:12]} 14. Nf4 {[%emt 0:01:45]} Nd5 {[%emt 0:00:32]} 15. Bxe7 {[%emt 0:00:25]} Nxe7 {[%emt 0:00:04]} 16. Qh5 {[%emt 0:03:07]} Qb6 {[%emt 0:05:45]} 17. Rae1 {[%emt 0:01:11]} Ng6 {[%emt 0:01:12]} 18. Nd5 {[%emt 0:03:22]} Qd6 {[%emt 0:00:30]} 19. f4 {[%emt 0:04:04]} f5 {[%emt 0:04:07]} 20. c4 {[%emt 0:01:22]} dxc3 {[%emt 0:09:10]} 21. bxc3 {[%emt 0:01:10]} Rae8 {[%emt 0:00:10]} 22. c4 {[%emt 0:04:48]} b6 {[%emt 0:09:19]} 23. h4 {[%emt 0:01:05]} Ne7 {[%emt 0:01:59]} 24. Re3 {[%emt 0:02:17]} Nxd5 {[%emt 0:07:22]} 25. Bxd5+ {[%emt 0:00:06]} Qxd5 {[%emt 0:00:03]} 26. cxd5 {[%emt 0:00:21]} Rxe3 {[%emt 0:00:02]} 27. Kf2 {[%emt 0:09:54]} Rfe8 {[%emt 0:03:47]} 28. Rd1 {[%emt 0:00:15]} g6 {[%emt 0:07:01]} 29. Qg5 {[%emt 0:00:44]} Re2+ {[%emt 0:01:09]} 30. Kf1 {[%emt 0:00:54]} Kg7 {[%emt 0:00:30]} 31. h5 {[%emt 0:00:36]} Rh2 {[%emt 0:00:16]} 32. g4 {[%emt 0:08:04]} Rh1+ {[%emt 0:00:27]} 33. Kf2 {[%emt 0:00:15]} Rxd1 {[%emt 0:00:06]} 34. gxf5 {[%emt 0:00:11]} Bxf5 {[%emt 0:00:10]} 35. h6+ {[%emt 0:00:21]} Kf7 {Kg1} 0-1

[Event "Lviv Tradition January 2019"]
[Site "Lviv"]
[Date "2019.01.29"]
[Round "4"]
[White "Terletsky, Oleg"]
[Black "Kyrychenko, Maryan"]
[Result "1-0"]
[ECO "B43"]
[WhiteElo "2197"]
[BlackElo "2207"]
[Annotator "NA RC"]
[PlyCount "99"]
[EventDate "2019.01.27"]
[EventType "schev"]
[EventCountry "UKR"]
[SourceTitle "playchess.com"]
[Source "ChessBase"]
[SourceQuality "1"]
[TimeControl "5400+30"]

{[%evp 27,96,79,85,32767,83,49,32767,32767,70,27,34,9,11,26,26,33,28,25,56,48,116,118,106,84,149,94,107,104,93,91,64,65,117,125,132,121,206,134,144,128,196,212,208,204,205,202,241,115,152,143,106,32767,68,53,32767,32767,68,0,0,0,16,5,106,62,32767,-16,58,60,32767,32767,29990]} 1. e4 {[%emt 0:00:00]} c5 {[%emt 0:00:00]} 2. Nf3 {[%emt 0:00:00]} e6 {[%emt 0:00:00]} 3. d4 {[%emt 0:00:00]} cxd4 {[%emt 0:00:00]} 4. Nxd4 {[%emt 0:00:00]} a6 {[%emt 0:00:00]} 5. Nc3 {[%emt 0:00:00]} Qc7 {[%emt 0:00:03]} 6. Bd3 {[%emt 0:00:00]} Nc6 {[%emt 0:03:31]} 7. Be3 {[%emt 0:00:07]} Nf6 {[%emt 0:13:43]} 8. O-O {[%emt 0:00:16]} Bd6 {[%emt 0:09:49]} 9. Nxc6 {[%emt 0:14:15]} dxc6 {[%emt 0:00:16]} 10. f4 {[%emt 0:00:50]} e5 {[%emt 0:00:07] B48: Sicilian: Taimanov: 5 Nc3 Qc7 6 Be3 a6 without Be2} 11. f5 {[%emt 0:00:12]} b5 {[%emt 0:02:16]} (11... Qe7 12. Qf3 b5 13. a4 Bb7 14. Kh1 Rd8 15. Qg3 Kf8 16. Rad1 h6 17. Qh4 Kg8 18. Rf3 Bc5 19. Bd2 Qc7 20. Qe1 Rd7 21. Qe2 {½-½ (21) Fressinet,L (2626)-Ye,J (2641) Paris 2006}) 12. a4 {[%emt 0:00:24]} b4 {[%emt 0:07:03]} 13. Nb1 {[%emt 0:00:06]} c5 {[%emt 0:04:20]} 14. Nd2 {[%emt 0:00:31]} Bb7 {[%emt 0:00:04]} 15. Qf3 {[%emt 0:04:22]} h5 {[%emt 0:10:36]} 16. Bg5 $146 {[%emt 0:03:35]} ({Predecessor:} 16. Nc4 Ng4 17. Bd2 Bc6 18. b3 {1-0 (37) Ahmad,A (2343)-Van der Nat,N (2160) Istanbul 2000}) 16... Be7 {[%emt 0:01:18]} 17. Nc4 {[%emt 0:03:54]} h4 {[%emt 0:16:24]} 18. Ne3 {[%emt 0:01:37]} Rd8 {[%emt 0:01:06]} 19. Bxf6 {[%emt 0:01:44]} Bxf6 {[%emt 0:00:27]} 20. Bc4 {[%emt 0:00:08]} Bg5 {[%emt 0:02:35]} 21. Nd5 {[%emt 0:00:07]} Bxd5 {[%emt 0:00:10]} 22. Bxd5 {[%emt 0:00:08]} Ke7 {[%emt 0:01:49]} 23. Qb3 {[%emt 0:01:44]} Kf6 {[%emt 0:02:51]} (23... Kf8 $11) 24. a5 {[%emt 0:00:11]} Rd6 {[%emt 0:01:16]} 25. Qc4 {[%emt 0:01:24]} Rb8 {[%emt 0:00:48]} (25... h3 $142) 26. Rad1 {[%emt 0:03:22]} Rbd8 {[%emt 0:02:38]} 27. Rd3 {[%emt 0:00:57]} Qxa5 {[%emt 0:04:39]} 28. Bxf7 {[%emt 0:00:39]} Qb5 $1 {[%emt 0:00:07]} 29. Qb3 {[%emt 0:03:38]} Qb6 {[%emt 0:01:45]} 30. Kh1 {[%emt 0:01:35]} Rxd3 {[%emt 0:01:54]} 31. cxd3 {[%emt 0:00:01]} Bf4 {[%emt 0:04:13]} (31... Rf8 $16) 32. Bc4 {[%emt 0:00:22]} (32. Bh5 $18 Rf8 33. Ra1) 32... a5 {[%emt 0:06:11]} 33. Qd1 {[%emt 0:03:26]} Ke7 {[%emt 0:00:40]} 34. Qh5 {[%emt 0:02:04]} Qf6 {[%emt 0:00:20]} 35. Ra1 {[%emt 0:00:07]} Ra8 {[%emt 0:01:28]} 36. Bd5 {[%emt 0:00:05]} Ra6 {[%emt 0:00:58]} 37. b3 {[%emt 0:01:19]} (37. Qh8 $18 Qf8 38. Qxh4+ Kd7 39. Qf2) 37... Bh6 {[%emt 0:00:27]} 38. Qe2 {[%emt 0:03:24]} Ra7 {[%emt 0:00:07]} 39. Qc2 {[%emt 0:00:20]} Be3 {[%emt 0:01:05]} 40. Re1 {[%emt 0:01:10]} Bd4 {[%emt 0:00:45]} 41. Rf1 {[%emt 0:00:29]} Qh6 {[%emt 0:01:07]} 42. f6+ {[%emt 0:09:16]} gxf6 {[%emt 0:00:04]} 43. Qe2 {[%emt 0:00:04]} Qg6 {[%emt 0:01:11]} 44. Qf3 {[%emt 0:00:27]} Kd6 {[%emt 0:01:16] [#]} (44... Kd8 $11 {keeps the balance.}) 45. Qh3 $1 {[%emt 0:00:09]} Rg7 {[%emt 0:00:28]} 46. Qe6+ {[%emt 0:04:20]} Kc7 {[%emt 0:00:01]} 47. Qc6+ {[%emt 0:00:07]} Kd8 {[%emt 0:00:08]} 48. Qd6+ {[%emt 0:00:34]} (48. Qxf6+ Kc7 $11 (48... Qxf6 49. Rxf6 Rg4 $11)) 48... Ke8 {[%emt 0:01:19]} (48... Kc8 $14 49. Qa6+ Kd8 (49... Kd7 50. Qc6+) 50. Qxa5+ Kd7 $16) 49. Bc6+ {[%emt 0:01:12]} Kf7 {[%emt 0:00:02]} 50. Qd5+ {[%emt 0:00:18]} 1-0

[Event "Lviv Tradition January 2019"]
[Site "Lviv"]
[Date "2019.01.29"]
[Round "4"]
[White "Siniauski, Artsiom"]
[Black "Taranenko, Evgueniy"]
[Result "1/2-1/2"]
[ECO "B00"]
[WhiteElo "2182"]
[BlackElo "2218"]
[Annotator "NA RC"]
[PlyCount "94"]
[EventDate "2019.01.27"]
[EventType "schev"]
[EventCountry "UKR"]
[SourceTitle "playchess.com"]
[Source "ChessBase"]
[SourceQuality "1"]
[TimeControl "5400+30"]

{[%evp 39,93,-47,-56,-47,-39,-52,-41,-41,-44,-44,-35,-57,-42,-108,-113,32767,32767,-154,-141,-152,-144,-165,-86,-149,-110,-153,-172,-163,-110,-140,-165,32767,-165,32767,32767,-148,32767,-117,-163,-196,0,-172,-5,-36,0,0,0,0,0,0,0,0,0,0,0,0]} 1. e4 {[%emt 0:00:00]} Nc6 {[%emt 0:00:00]} 2. Nf3 {[%emt 0:00:09]} d5 {[%emt 0:00:02]} 3. exd5 {[%emt 0:00:16]} Qxd5 {[%emt 0:00:01]} 4. Nc3 {[%emt 0:00:08]} Qa5 {[%emt 0:00:03]} 5. d4 {[%emt 0:00:16]} Bg4 {[%emt 0:00:08]} 6. Be2 {[%emt 0:00:11]} O-O-O {[%emt 0:00:12]} 7. Be3 {[%emt 0:01:06] B01: Scandinavian Defence} e5 {[%emt 0:00:14]} (7... Nf6 8. a3 Qf5 9. O-O Bxf3 10. Bxf3 Nxd4 11. Bxd4 e5 12. Ne2 exd4 13. Nxd4 Qd7 14. c3 Bc5 {1-0 (61) Malakhov,V (2707)-Fressinet,L (2708) Tromsoe 2013}) 8. Nxe5 {[%emt 0:01:15]} Bxe2 {[%emt 0:00:07]} 9. Qxe2 {[%emt 0:03:05]} Nxe5 {[%emt 0:00:06]} 10. dxe5 {[%emt 0:00:07]} Qxe5 {[%emt 0:00:02]} 11. Qb5 {[%emt 0:01:24]} Qxb5 {[%emt 0:05:20]} 12. Nxb5 {[%emt 0:00:06]} a6 {[%emt 0:00:06]} 13. Nd4 {[%emt 0:00:10]} Nf6 {[%emt 0:00:18]} 14. O-O-O $146 {[%emt 0:02:06]} ({Predecessor:} 14. c3) 14... Ng4 {[%emt 0:08:39]} 15. Bg5 {[%emt 0:03:30]} f6 {[%emt 0:14:00]} 16. Bh4 {[%emt 0:00:23]} Bc5 {[%emt 0:01:49]} 17. Ne6 {[%emt 0:07:37]} Rxd1+ {[%emt 0:00:33]} 18. Rxd1 {[%emt 0:00:07]} Bxf2 {[%emt 0:01:41]} 19. Bxf2 {[%emt 0:00:16]} Nxf2 {[%emt 0:00:01]} 20. Rf1 {[%emt 0:49:31]} Ne4 {[%emt 0:01:42]} 21. Rf4 {[%emt 0:06:28]} Nd6 {[%emt 0:00:56]} 22. Nxg7 {[%emt 0:00:16]} Rg8 {[%emt 0:00:12]} 23. Nf5 {[%emt 0:00:07]} Nxf5 {[%emt 0:01:21]} 24. Rxf5 {[%emt 0:00:07]} Rxg2 {[%emt 0:00:04]} 25. h4 {[%emt 0:00:37]} Rg6 {[%emt 0:11:46]} 26. h5 {[%emt 0:00:22]} (26. Kd2 $15) 26... Rg5 {[%emt 0:00:40]} 27. Rxf6 {[%emt 0:00:05]} Rxh5 {[%emt 0:00:03]} 28. Rf7 {[%emt 0:00:12]} b6 {[%emt 0:08:25]} 29. b3 {[%emt 0:01:05]} Kb7 {[%emt 0:00:28]} 30. Kb2 {[%emt 0:00:15]} Rh6 {[%emt 0:03:37]} (30... Rh3 $19 {is more deadly.} 31. Kc1 h5) 31. a4 {[%emt 0:00:26]} ({Better is} 31. b4) 31... a5 {[%emt 0:00:21]} 32. Rg7 {[%emt 0:00:10]} Kc6 {[%emt 0:01:16]} 33. Rf7 {[%emt 0:01:18]} Kd6 {[%emt 0:01:20]} 34. Kc3 {[%emt 0:01:45]} Rh3+ {[%emt 0:09:05]} 35. Kb2 {[%emt 0:01:21]} Rh5 {[%emt 0:01:27]} 36. Rg7 {[%emt 0:00:10]} Kc6 {[%emt 0:03:35]} 37. Rf7 {[%emt 0:00:33]} Kb7 {[%emt 0:00:27]} 38. Rg7 {[%emt 0:00:13]} Rh6 {[%emt 0:01:20]} 39. Rf7 {[%emt 0:00:15]} (39. Kc3 $17 {might work better.}) 39... Kb8 {[%emt 0:01:53]} (39... Rh4 $17 40. Kc3 Kc6) 40. Rg7 $2 {[%emt 0:00:28]} (40. Rf8+ $1 $11 {and White is okay.} Kb7 41. Kc3) 40... c5 $2 {[%emt 0:00:53]} (40... Rh3 $19 41. Rg2 h5) 41. Kc3 {[%emt 0:00:29]} Kc8 {[%emt 0:00:18]} 42. Kc4 {[%emt 0:01:36]} Kd8 {[%emt 0:03:49]} 43. Kb5 {[%emt 0:01:22]} Ke8 {[%emt 0:00:55]} 44. Rb7 {[%emt 0:00:22]} Kf8 {[%emt 0:00:16]} 45. Rb8+ {[%emt 0:00:06]} ({Not} 45. Rxb6 $2 Rxb6+ 46. Kxb6 h5 $19) 45... Kg7 {[%emt 0:00:06]} 46. Rb7+ {[%emt 0:00:05]} ({Don't go for} 46. Rxb6 $2 Rxb6+ 47. Kxb6 h5 $19) 46... Kg8 {[%emt 0:00:11]} 47. Rb8+ $11 {[%emt 0:00:05]} ({Not} 47. Rxb6 $2 Rxb6+ 48. Kxb6 h5 $19) 47... Kg7 {[%emt 0:00:05]} 1/2-1/2

[Event "Lviv Tradition January 2019"]
[Site "Lviv"]
[Date "2019.01.29"]
[Round "5"]
[White "Kagramanianz, Vartan"]
[Black "Boricsev, Oleg"]
[Result "1/2-1/2"]
[ECO "A14"]
[WhiteElo "2246"]
[BlackElo "2297"]
[Annotator "NA"]
[PlyCount "61"]
[EventDate "2019.01.27"]
[EventType "schev"]
[EventCountry "UKR"]
[SourceTitle "playchess.com"]
[Source "ChessBase"]
[SourceQuality "1"]
[TimeControl "5400+30"]

1. c4 {[%emt 0:05:18]} e6 {[%emt 0:02:17]} 2. Nf3 {[%emt 0:01:04]} d5 {[%emt 0:00:07]} 3. g3 {[%emt 0:06:07]} Nf6 {[%emt 0:02:51]} 4. Bg2 {[%emt 0:00:24]} Be7 {[%emt 0:00:09]} 5. O-O {[%emt 0:01:00]} O-O {[%emt 0:05:53]} 6. d4 {[%emt 0:00:31]} dxc4 {[%emt 0:01:28]} 7. Qc2 {[%emt 0:01:52]} a6 {[%emt 0:00:30]} 8. Qxc4 {[%emt 0:00:18]} b5 {[%emt 0:00:15]} 9. Qc2 {[%emt 0:00:08]} Bb7 {[%emt 0:00:06]} 10. Bd2 {[%emt 0:00:34]} Bd6 {[%emt 0:05:00]} 11. Re1 {[%emt 0:01:35]} Be4 {[%emt 0:01:06]} 12. Qc1 {[%emt 0:00:16]} Bb7 {[%emt 0:00:11]} 13. Qc2 {[%emt 0:00:23]} Be4 {[%emt 0:00:07]} 14. Qc1 {[%emt 0:00:12]} Bb7 {[%emt 0:00:07]} 15. Bg5 {[%emt 0:01:28]} Nbd7 {[%emt 0:01:09]} 16. Nbd2 {[%emt 0:03:05]} c5 {[%emt 0:00:09]} 17. Bxf6 {[%emt 0:01:53]} gxf6 {[%emt 0:00:14]} 18. Nb3 {[%emt 0:00:20]} c4 {[%emt 0:00:05]} 19. Nbd2 {[%emt 0:00:13]} Rc8 {[%emt 0:00:04]} 20. a3 {[%emt 0:00:08]} Qb6 {[%emt 0:00:11]} 21. e4 {[%emt 0:00:16]} Rfd8 {[%emt 0:00:54]} 22. e5 {[%emt 0:01:11]} Bf8 {[%emt 0:00:07]} 23. Ne4 {[%emt 0:00:53]} fxe5 {[%emt 0:00:44]} 24. dxe5 {[%emt 0:03:15]} h6 {[%emt 0:00:08]} 25. Nd6 {[%emt 0:00:25]} Rc5 {[%emt 0:00:19]} 26. Qf4 {[%emt 0:00:31]} Bxd6 {[%emt 0:00:42]} 27. exd6 {[%emt 0:03:37]} Rf5 {[%emt 0:04:54]} 28. Qxh6 {[%emt 0:01:04]} Bxf3 {[%emt 0:00:05]} 29. Bxf3 {[%emt 0:00:08]} Rxf3 {[%emt 0:00:13]} 30. Qg5+ {[%emt 0:00:22]} Kf8 {[%emt 0:00:02]} 31. Qe7+ {[%emt 0:00:27]} 1/2-1/2

[Event "Lviv Tradition January 2019"]
[Site "Lviv"]
[Date "2019.01.29"]
[Round "5"]
[White "Prydun, Andriy"]
[Black "Terletsky, Oleg"]
[Result "1-0"]
[ECO "C47"]
[WhiteElo "2218"]
[BlackElo "2197"]
[Annotator "NA"]
[PlyCount "78"]
[EventDate "2019.01.27"]
[EventType "schev"]
[EventCountry "UKR"]
[SourceTitle "playchess.com"]
[Source "ChessBase"]
[SourceQuality "1"]
[TimeControl "5400+30"]

1. e4 {[%emt 0:03:21]} e5 {[%emt 0:00:00]} 2. Nf3 {[%emt 0:00:06]} Nc6 {[%emt 0:00:00]} 3. Nc3 {[%emt 0:00:04]} Nf6 {[%emt 0:00:00]} 4. a3 {[%emt 0:00:03]} d5 {[%emt 0:10:11]} 5. exd5 {[%emt 0:00:10]} Nxd5 {[%emt 0:00:09]} 6. Bb5 {[%emt 0:00:04]} Nxc3 {[%emt 0:00:08]} 7. bxc3 {[%emt 0:00:03]} Bd6 {[%emt 0:00:07]} 8. d4 {[%emt 0:00:04]} exd4 {[%emt 0:00:05]} 9. Nxd4 {[%emt 0:09:19]} Qe7+ {[%emt 0:17:57]} 10. Qe2 {[%emt 0:08:58]} Qxe2+ {[%emt 0:01:16]} 11. Kxe2 {[%emt 0:00:02]} Bd7 {[%emt 0:00:31]} 12. Nxc6 {[%emt 0:00:15]} a6 {[%emt 0:06:17]} 13. Ba4 {[%emt 0:05:53]} b5 {[%emt 0:00:06]} 14. Bb3 {[%emt 0:31:09]} Bxc6 {[%emt 0:02:52]} 15. Be3 {[%emt 0:00:29]} O-O {[%emt 0:07:42]} 16. a4 {[%emt 0:17:50]} Be5 {[%emt 0:10:46]} 17. Ra3 {[%emt 0:04:03]} Bxg2 {[%emt 0:01:29]} 18. Rg1 {[%emt 0:00:09]} Bc6 {[%emt 0:00:51]} 19. axb5 {[%emt 0:06:58]} Bxb5+ {[%emt 0:12:02]} 20. c4 {[%emt 0:00:06]} Bc6 {[%emt 0:00:07]} 21. Ra5 {[%emt 0:06:10]} Bxh2 {[%emt 0:02:50]} 22. Rg4 {[%emt 0:01:11]} Bd6 {[%emt 0:02:49]} 23. Rag5 g6 {[%emt 0:03:44]} 24. c5 {[%emt 0:01:40]} Bb5+ {[%emt 0:04:34]} 25. c4 {[%emt 0:00:46]} Be7 {[%emt 0:00:03]} 26. cxb5 {[%emt 0:00:33]} Bxg5 {[%emt 0:00:06]} 27. Rxg5 {[%emt 0:00:05]} axb5 {[%emt 0:00:08]} 28. c6 {[%emt 0:00:42]} Rfb8 {[%emt 0:00:40]} 29. Bf4 {[%emt 0:01:21]} Ra3 {[%emt 0:00:20]} 30. Bd5 {[%emt 0:00:58]} Rc8 {[%emt 0:05:18]} 31. Re5 {[%emt 0:00:15]} Rd8 {[%emt 0:00:49]} 32. Bg5 {[%emt 0:00:18]} Rd6 {[%emt 0:00:44]} 33. Be7 {[%emt 0:00:28]} Rxd5 {[%emt 0:03:59]} 34. Rxd5 {[%emt 0:00:07]} Ra2+ {[%emt 0:00:11]} 35. Rd2 {[%emt 0:00:50]} Rxd2+ {[%emt 0:02:36]} 36. Kxd2 {[%emt 0:00:05]} f5 {[%emt 0:00:04]} 37. Bd6 {[%emt 0:00:14]} Kf7 {[%emt 0:00:06]} 38. Bxc7 {[%emt 0:01:23]} Ke6 {[%emt 0:00:50]} 39. Bh2 {[%emt 0:00:46]} Kd5 1-0